Workbook

Sheet R-value fitting
A1: Experimental Data | C1: Fitted Values | F1: Fitting Statistics | I1: Parameter Errors | V1: T0 Stock
A2: L0 Concentration (pM) | B2: R (%) | C2: Kd (pM) Fitting Parameter | D2: T0 (pM) Fitting Parameter | E2: Calculated R (%) | F2: Square of differences of i | G2: Residual | H2: Degrees of Freedom | I2: dR/d[T]0 | J2: dR/dKd | K2: (dR/d[T]0)^2 of i | L2: Sum | M2: (dR/dKd)^2 of i | N2: Sum | O2: (dR/d[T]0)*(dR/dKd) of i | P2: Sum^2 | Q2: Matrix Determinant | R2: Kd variance | S2: T0 variance | T2: Kd Standard Deviation | U2: T0 Standard Deviation | V2: Protein Dilution | W2: T stock concentration (pM)
A3: 100 | B3: 46% | C3: 123 | D3: 213 | E3: =IF(ISBLANK(A3),"",(A3-$C$3-$D$3)/2/A3+SQRT((($C$3+$D$3-A3)/2/A3)^2+$C$3/A3)) -> 44% | F3: =IF(ISBLANK(A3),"",(B3-E3)^2) -> 3.4E-04 | G3: =SUM(F3:INDIRECT("F"&($H$3+4))) -> 1.16E-02 | H3: =COUNT(A3:A202)-2 -> 22 | I3: =IF(ISBLANK(A3),"",(-1/(A3*2))+(0.25*((($C$3+$D$3-A3)/(A3^2))/SQRT((($C$3+$D$3-A3)/(2*A3))^2+($C$3/A3))))) -> -1.36E-03 | J3: =IF(ISBLANK(A3),"",(-1/(A3*2))+(0.5*(((($C$3+$D$3-A3)/((A3^2)*2))+(1/A3))/SQRT((($C$3+$D$3-A3)/(2*A3))^2+($C$3/A3))))) -> 1.73E-03 | K3: =IF(ISBLANK(A3),"",(I3^2)) -> 1.839953444e-06 | L3: =SUM(K3:INDIRECT("K"&($H$3+4))) -> 2.87E-05 | M3: =IF(ISBLANK(A3),"",(J3^2)) -> 3.01E-06 | N3: =SUM(M3:INDIRECT("M"&($H$3+4))) -> 1.80E-05 | O3: =IF(ISBLANK(A3),"",(I3*J3)) -> -2.35E-06 | P3: =SUM(O3:INDIRECT("O"&($H$3+4)))^2 -> 4.00E-10 | Q3: =(L3*N3)-P3 -> 1.17E-10 | R3: =(G3/H3)/Q3*L3 -> 1.28E+02 | S3: =(G3/H3)/Q3*N3 -> 8.07E+01 | T3: =SQRT(R3) -> 11.33 | U3: =SQRT(S3) -> 8.98 | V3: 0.001 | W3: =(D3/V3) -> 213038
A4: 100 | B4: 44% | E4: =IF(ISBLANK(A4),"",(A4-$C$3-$D$3)/2/A4+SQRT((($C$3+$D$3-A4)/2/A4)^2+$C$3/A4)) -> 44% | F4: 1.2E-07 | I4: =IF(ISBLANK(A4),"",(-1/(A4*2))+(0.25*((($C$3+$D$3-A4)/(A4^2))/SQRT((($C$3+$D$3-A4)/(2*A4))^2+($C$3/A4))))) -> -1.36E-03 | J4: =IF(ISBLANK(A4),"",(-1/(A4*2))+(0.5*(((($C$3+$D$3-A4)/((A4^2)*2))+(1/A4))/SQRT((($C$3+$D$3-A4)/(2*A4))^2+($C$3/A4))))) -> 1.73E-03 | K4: =IF(ISBLANK(A4),"",(I4^2)) -> 1.839953444e-06 | M4: =IF(ISBLANK(A4),"",(J4^2)) -> 3.01E-06 | O4: =IF(ISBLANK(A4),"",(I4*J4)) -> -2.35E-06
A5: 100 | B5: 43% | E5: 44% | F5: 4.9E-05 | I5: -1.36E-03 | J5: 1.73E-03 | K5: 1.839953444e-06 | M5: 3.01E-06 | O5: -2.35E-06
A6: 200 | B6: 50% | E6: 51% | F6: 2.0E-04 | I6: -1.51E-03 | J6: 1.42E-03 | K6: 2.268442463e-06 | M6: 2.02E-06 | O6: -2.14E-06
A7: 200 | B7: 51% | E7: 51% | F7: 3.6E-05 | I7: -1.51E-03 | J7: 1.42E-03 | K7: 2.268442463e-06 | M7: 2.02E-06 | O7: -2.14E-06
A8: 200 | B8: 51% | E8: 51% | F8: 5.0E-05 | I8: -1.51E-03 | J8: 1.42E-03 | K8: 2.268442463e-06 | M8: 2.02E-06 | O8: -2.14E-06
A9: 400 | B9: 64% | E9: 64% | F9: 5.5E-06 | I9: -1.43E-03 | J9: 8.04E-04 | K9: 2.043168045e-06 | M9: 6.47E-07 | O9: -1.15E-06
A10: 400 | B10: 66% | E10: 64% | F10: 2.7E-04 | I10: -1.43E-03 | J10: 8.04E-04 | K10: 2.043168045e-06 | M10: 6.47E-07 | O10: -1.15E-06
A11: 400 | B11: 64% | E11: 64% | F11: 3.1E-06 | I11: -1.43E-03 | J11: 8.04E-04 | K11: 2.043168045e-06 | M11: 6.47E-07 | O11: -1.15E-06
A12: 600 | B12: 73% | E12: 72% | F12: 6.3E-05 | I12: -1.20E-03 | J12: 4.59E-04 | K12: 1.435609257e-06 | M12: 2.10E-07 | O12: -5.49E-07
A13: 600 | B13: 77% | E13: 72% | F13: 1.9E-03 | I13: -1.20E-03 | J13: 4.59E-04 | K13: 1.435609257e-06 | M13: 2.10E-07 | O13: -5.49E-07
A14: 600 | B14: 73% | E14: 72% | F14: 1.1E-04 | I14: -1.20E-03 | J14: 4.59E-04 | K14: 1.435609257e-06 | M14: 2.10E-07 | O14: -5.49E-07
A15: 800 | B15: 77% | E15: 78% | F15: 7.5E-05 | I15: -9.97E-04 | J15: 2.85E-04 | K15: 9.941337505e-07 | M15: 8.13E-08 | O15: -2.84E-07
A16: 800 | B16: 76% | E16: 78% | F16: 3.0E-04 | I16: -9.97E-04 | J16: 2.85E-04 | K16: 9.941337505e-07 | M16: 8.13E-08 | O16: -2.84E-07
A17: 800 | B17: 78% | E17: 78% | F17: 5.8E-06 | I17: -9.97E-04 | J17: 2.85E-04 | K17: 9.941337505e-07 | M17: 8.13E-08 | O17: -2.84E-07
A18: 1000 | B18: 83% | E18: 81% | F18: 3.7E-04 | I18: -8.44E-04 | J18: 1.92E-04 | K18: 7.123686142e-07 | M18: 3.68E-08 | O18: -1.62E-07
A19: 1000 | B19: 79% | E19: 81% | F19: 5.9E-04 | I19: -8.44E-04 | J19: 1.92E-04 | K19: 7.123686142e-07 | M19: 3.68E-08 | O19: -1.62E-07
A20: 1000 | B20: 76% | E20: 81% | F20: 3.3E-03 | I20: -8.44E-04 | J20: 1.92E-04 | K20: 7.123686142e-07 | M20: 3.68E-08 | O20: -1.62E-07
A21: 2000 | B21: 92% | E21: 90% | F21: 3.2E-04 | I21: -4.65E-04 | J21: 5.15E-05 | K21: 2.160524102e-07 | M21: 2.65E-09 | O21: -2.39E-08
A22: 2000 | B22: 91% | E22: 90% | F22: 1.0E-04 | I22: -4.65E-04 | J22: 5.15E-05 | K22: 2.160524102e-07 | M22: 2.65E-09 | O22: -2.39E-08
A23: 2000 | B23: 86% | E23: 90% | F23: 1.3E-03 | I23: -4.65E-04 | J23: 5.15E-05 | K23: 2.160524102e-07 | M23: 2.65E-09 | O23: -2.39E-08
A24: 4000 | B24: 95% | E24: 95% | F24: 3.6E-06 | I24: -2.42E-04 | J24: 1.32E-05 | K24: 5.844546807e-08 | M24: 1.73E-10 | O24: -3.18E-09
A25: 4000 | B25: 98% | E25: 95% | F25: 7.9E-04 | I25: -2.42E-04 | J25: 1.32E-05 | K25: 5.844546807e-08 | M25: 1.73E-10 | O25: -3.18E-09
A26: 4000 | B26: 98% | E26: 95% | F26: =IF(ISBLANK(A26),"",(B26-E26)^2) -> 1.3E-03 | I26: -2.42E-04 | J26: 1.32E-05 | K26: 5.844546807e-08 | M26: 1.73E-10 | O26: -3.18E-09
F27: =IF(ISBLANK(A27),"",(B27-E27)^2) -> 
E68: =IF(ISBLANK(A68),"",(A68-$C$3-$D$3)/2/A68+SQRT((($C$3+$D$3-A68)/2/A68)^2+$C$3/A68)) ->  | I68: =IF(ISBLANK(A68),"",(-1/(A68*2))+(0.25*((($C$3+$D$3-A68)/(A68^2))/SQRT((($C$3+$D$3-A68)/(2*A68))^2+($C$3/A68))))) ->  | J68: =IF(ISBLANK(A68),"",(-1/(A68*2))+(0.5*(((($C$3+$D$3-A68)/((A68^2)*2))+(1/A68))/SQRT((($C$3+$D$3-A68)/(2*A68))^2+($C$3/A68))))) ->  | K68: =IF(ISBLANK(A68),"",(I68^2)) ->  | M68: =IF(ISBLANK(A68),"",(J68^2)) ->  | O68: =IF(ISBLANK(A68),"",(I68*J68)) -> 
F91: =IF(ISBLANK(A91),"",(B91-E91)^2) -> 
E132: =IF(ISBLANK(A132),"",(A132-$C$3-$D$3)/2/A132+SQRT((($C$3+$D$3-A132)/2/A132)^2+$C$3/A132)) ->  | I132: =IF(ISBLANK(A132),"",(-1/(A132*2))+(0.25*((($C$3+$D$3-A132)/(A132^2))/SQRT((($C$3+$D$3-A132)/(2*A132))^2+($C$3/A132))))) ->  | J132: =IF(ISBLANK(A132),"",(-1/(A132*2))+(0.5*(((($C$3+$D$3-A132)/((A132^2)*2))+(1/A132))/SQRT((($C$3+$D$3-A132)/(2*A132))^2+($C$3/A132))))) ->  | K132: =IF(ISBLANK(A132),"",(I132^2)) ->  | M132: =IF(ISBLANK(A132),"",(J132^2)) ->  | O132: =IF(ISBLANK(A132),"",(I132*J132)) -> 
F155: =IF(ISBLANK(A155),"",(B155-E155)^2) -> 
E196: =IF(ISBLANK(A196),"",(A196-$C$3-$D$3)/2/A196+SQRT((($C$3+$D$3-A196)/2/A196)^2+$C$3/A196)) ->  | I196: =IF(ISBLANK(A196),"",(-1/(A196*2))+(0.25*((($C$3+$D$3-A196)/(A196^2))/SQRT((($C$3+$D$3-A196)/(2*A196))^2+($C$3/A196))))) ->  | J196: =IF(ISBLANK(A196),"",(-1/(A196*2))+(0.5*(((($C$3+$D$3-A196)/((A196^2)*2))+(1/A196))/SQRT((($C$3+$D$3-A196)/(2*A196))^2+($C$3/A196))))) ->  | K196: =IF(ISBLANK(A196),"",(I196^2)) ->  | M196: =IF(ISBLANK(A196),"",(J196^2)) ->  | O196: =IF(ISBLANK(A196),"",(I196*J196)) -> 
E201: =IF(ISBLANK(A201),"",(A201-$C$3-$D$3)/2/A201+SQRT((($C$3+$D$3-A201)/2/A201)^2+$C$3/A201)) ->  | F201: =IF(ISBLANK(A201),"",(B201-E201)^2) -> 
